fUSD/lending_fUSD_20250101
["ID","MTS","AMOUNT","RATE_DAILY","PERIOD"]
[347406939,1735770641884,-1129.1,0.00010958,2]
[347406940,1735770641894,-500.0,0.00010958,2]
[347406941,1735770641903,-1653.96,0.00010958,2]
[347406942,1735770641912,-840.32,0.00010958,2]
[347406943,1735770641921,-1317.06,0.00010958,2]
[347406944,1735770641930,-649.9,0.00010958,2]
[347406945,1735770641939,-648.71,0.00010958,2]
[347406946,1735770641948,-1089.59,0.00010958,2]
[347406947,1735770641958,-709.25,0.00010958,2]
[347406948,1735770641967,-500.0,0.00010958,2]
[347406949,1735770641977,-500.0,0.00010958,2]
[347406950,1735770641986,-980.5,0.00010958,2]
[347406951,1735770641996,-1311.75,0.00010958,2]
[347406952,1735770642006,-1462.12,0.00010958,2]
[347406953,1735770642016,-500.0,0.00010958,2]
[347406954,1735770642025,-883.26,0.00010958,2]
[347406955,1735770642034,-1911.91,0.00010958,2]
[347406956,1735770642043,-500.0,0.00010958,2]
[347406957,1735770642054,-500.0,0.00010958,2]
[347406958,1735770642063,-949.49,0.00010958,2]
[347406959,1735770642073,-564.09,0.00010958,2]
[347406960,1735770642083,-1012.7,0.00010958,2]
[347406961,1735770642092,-500.0,0.00010958,2]
[347406962,1735770642102,-625.66,0.00010958,2]
[347406963,1735770642111,-500.0,0.00010958,2]
[347406964,1735770642120,-500.0,0.00010958,2]
[347406965,1735770642129,-500.0,0.00010958,2]
[347406966,1735770642138,-874.13,0.00010958,2]
[347406967,1735770642147,-513.36,0.00010958,2]
[347406968,1735770642156,-630.01,0.00010958,2]
[347406969,1735770642166,-500.0,0.00010958,2]
[347406970,1735770642175,-705.364887,0.00010958,2]
[347406971,1735770642200,-287.245113,0.00010958,2]
[347406972,1735770642210,-1222.25,0.00010958,2]
[347406973,1735770642220,-906.47,0.00010958,2]
[347406974,1735770642229,-832.22,0.00010958,2]
[347406975,1735770642242,-1369.78,0.00010958,2]
[347406976,1735770642251,-500.0,0.00010958,2]
[347406977,1735770642260,-714.33,0.00010958,2]
[347406978,1735770642269,-1457.77,0.00010958,2]
[347406979,1735770642279,-500.0,0.00010958,2]
[347406980,1735770642288,-2183.93118727,0.00010958,2]
[347406981,1735770642300,-1181.10999999,0.00010958,2]
[347406982,1735770642311,-279.23881274,0.00010958,2]
[347406983,1735770642319,-500.0,0.00010958,2]
[347406984,1735770642329,-30.38118726,0.00010958,2]
[347406985,1735770642341,-566.84138598,0.00010958,2]
[347406986,1735770642352,-1108.05999929,0.00010958,2]
[347406987,1735770642363,-128.51742747,0.00010958,2]
[347406988,1735770642372,-549.65,0.00010958,2]
[347406989,1735770642381,-703.19,0.00010958,2]
[347406990,1735770642390,-350.18184408,0.00010958,2]
[347406991,1735770642401,-1176.89815592,0.00010958,2]
[347406992,1735770642409,-605.82,0.00010958,2]
[347406993,1735770642419,-500.0,0.00010958,2]
[347406994,1735770642428,-535.47,0.00010958,2]
[347406995,1735770642437,-1193.25,0.00010958,2]
[347406996,1735770642446,-621.49,0.00010958,2]
[347406997,1735770642455,-873.71,0.00010958,2]
[347406998,1735770642464,-1218.28,0.00010958,2]
[347406999,1735770642472,-500.0,0.00010958,2]
[347407000,1735770642481,-568.14045834,0.00010958,2]
[347407001,1735770642493,-398.62975953,0.00010958,2]
[347407002,1735770642504,-713.90978213,0.00010958,2]
[347407003,1735770642513,-519.81,0.00010958,2]
[347407004,1735770642522,-500.0,0.00010958,2]
[347407005,1735770642531,-242.98463519,0.00010958,2]
[347407006,1735770642542,-1320.53536481,0.00010958,2]
[347407007,1735770642551,-63.2463246,0.00010958,2]
[347407008,1735770642563,-436.7536754,0.00010958,2]
[347407009,1735770642572,-500.0,0.00010958,2]
[347407010,1735770642581,-1011.9463246,0.00010958,2]
[347407011,1735770642592,-966.89495127,0.00010958,2]
[347407012,1735770642602,-63.66872413,0.00010958,2]
[347407013,1735770642611,-500.0,0.00010958,2]
[347407014,1735770642621,-836.12526678,0.00010958,2]
[347407030,1735770643162,-306.0,9.888e-05,2]
[347407031,1735770643175,-132.75819734,9.888e-05,2]
[347407032,1735770643184,-815.73,0.00010263,2]
[347407033,1735770643194,-150.0,0.000106,2]
[347407034,1735770643205,-2013.0,0.00010849,2]
[347407035,1735770643214,-129.19473322,0.00010958,2]
[347407036,1735770643224,-500.0,0.00010958,2]
[347407037,1735770643235,-860.55,0.00010958,2]
[347407038,1735770643245,-500.0,0.00010958,2]
[347407040,1735770643255,-1094.36,0.00010958,2]
[347407041,1735770643265,-500.0,0.00010958,2]
[347407042,1735770643275,-1934.74,0.00010958,2]
[347407043,1735770643284,-1460.66,0.00010958,2]
[347407044,1735770643294,-710.36,0.00010958,2]
[347407045,1735770643303,-673.64702944,0.00010958,2]
[347407046,1735770643316,-1281.55297056,0.00010958,2]
[347407047,1735770643325,-500.0,0.00010958,2]
[347407048,1735770643335,-500.0,0.00010958,2]
[347407049,1735770643344,-500.0,0.00010958,2]
[347407050,1735770643354,-1676.27,0.00010958,2]
[347407052,1735770643363,-500.0,0.00010958,2]
[347407053,1735770643373,-660.88875386,0.00010958,2]
[347407054,1735770643385,-865.91124614,0.00010958,2]
[347407055,1735770643394,-3407.38,0.00010958,2]
[347407056,1735770643403,-1158.89,0.00010958,2]
[347407057,1735770643413,-1097.53,0.00010958,2]
[347407058,1735770643422,-770.28875386,0.00010958,2]
[347407059,1735770643434,-445.00124614,0.00010958,2]
[347407060,1735770643444,-634.84,0.00010958,2]
[347407061,1735770643458,-500.0,0.00010958,2]
[347407062,1735770643468,-4499.4,0.00010958,2]
[347407063,1735770643478,-1196.34,0.00010958,2]
[347407064,1735770643488,-1084.25,0.00010958,2]
[347407065,1735770643498,-500.0,0.00010958,2]
[347407066,1735770643507,-500.0,0.00010958,2]
[347407067,1735770643517,-770.96,0.00010958,2]
[347407068,1735770643527,-1097.48,0.00010958,2]
[347407069,1735770643537,-2032.97,0.00010958,2]
[347407070,1735770643547,-500.0,0.00010958,2]
[347407071,1735770643556,-436.74722479,0.00010958,2]
[347407072,1735770643568,-174.07277521,0.00010958,2]
[347407073,1735770643578,-3189.14,0.00010958,2]
[347407074,1735770643588,-5.00722479,0.00010958,2]
[347407075,1735770643686,-494.99277521,0.00010958,2]
[347407076,1735770643696,-500.0,0.00010958,2]
[347407077,1735770643706,-1542.75,0.00010958,2]
[347407078,1735770643715,-500.0,0.00010958,2]
[347407079,1735770643727,-995.08,0.00010958,2]
[347407080,1735770643738,-1131.79,0.00010958,2]
[347407081,1735770643750,-623.37,0.00010958,2]
[347407082,1735770643761,-1993.72,0.00010958,2]
[347407083,1735770643770,-808.85,0.00010958,2]
[347407084,1735770643779,-500.0,0.00010958,2]
[347407085,1735770643788,-652.23682479,0.00010958,2]
[347407086,1735770643800,-519.63317521,0.00010958,2]
[347407087,1735770643810,-652.955844,0.00010958,2]
[347407088,1735770643821,-372.864156,0.00010958,2]
[347407089,1735770643831,-500.0,0.00010958,2]
[347407090,1735770643841,-823.8,0.00010958,2]
[347407091,1735770643850,-1011.24,0.00010958,2]
[347407092,1735770643860,-963.69,0.00010958,2]
[347407093,1735770643869,-1577.41,0.00010958,2]
[347407094,1735770643880,-1444.46,0.00010958,2]
[347407095,1735770643890,-1271.0,0.00010958,2]
[347407096,1735770643900,-1144.67,0.00010958,2]
[347407097,1735770643910,-1930.76,0.00010958,2]
[347407098,1735770643920,-1522.79,0.00010958,2]
[347407099,1735770643930,-1786.91,0.00010958,2]
[347407100,1735770643939,-500.0,0.00010958,2]
[347407101,1735770643949,-724.38,0.00010958,2]
[347407102,1735770643959,-708.72,0.00010958,2]
[347407103,1735770643968,-1021.96980524,0.00010958,2]
[347407104,1735770643988,-1282.66019476,0.00010958,2]
[347407105,1735770643997,-674.7,0.00010958,2]
[347407106,1735770644007,-1196.43,0.00010958,2]
[347407107,1735770644017,-270.47846968,0.00010958,2]
[347407108,1735770644034,-879.63579548,0.00010958,2]
[347407109,1735770644046,-261.76573484,0.00010958,2]
[347407110,1735770644055,-72.79080601,0.00010958,2]
[347407120,1735770645955,-619.02,0.00010958,2]
[347407121,1735770645967,-427.9694705,0.00010958,2]
[347407122,1735770645978,-384.16329,0.00010958,2]
[347407123,1735770645997,-128.78643349,0.00010958,2]
[347407124,1735770646007,-250.08296651,0.00010958,2]
[347407125,1735770646435,-249.91703349,0.00010958,2]
[347407126,1735770646445,-2496.82145915,0.00010958,2]
[347407127,1735770646457,-2864.15854085,0.00010958,2]
[347407128,1735770646466,-500.0,0.00010958,2]
[347407129,1735770646476,-1004.37,0.00010958,2]
[347407130,1735770646485,-500.0,0.00010958,2]
[347407131,1735770646495,-1145.13,0.00010958,2]
[347407132,1735770646504,-563.95,0.00010958,2]
[347407133,1735770646513,-3545.22,0.00010958,2]
[347407134,1735770646523,-808.79,0.00010958,2]
[347407135,1735770646533,-3446.05,0.00010958,2]
[347407136,1735770646544,-6687.61,0.00010958,2]
[347407137,1735770646554,-1262.88,0.00010958,2]
[347407138,1735770646564,-1445.69,0.00010958,2]
[347407139,1735770646573,-1378.21,0.00010958,2]
[347407140,1735770646582,-500.0,0.00010958,2]
[347407141,1735770646592,-11180.99,0.00010958,2]
[347407142,1735770646601,-500.0,0.00010958,2]
[347407143,1735770646611,-500.0,0.00010958,2]
[347407144,1735770646621,-3887.98,0.00010958,2]
[347407145,1735770646630,-1663.44,0.00010958,2]
[347407146,1735770646640,-500.0,0.00010958,2]
[347407147,1735770646650,-531.36,0.00010958,2]
[347407148,1735770646659,-1315.66,0.00010958,2]
[347407149,1735770646669,-500.0,0.00010958,2]
[347407150,1735770646678,-1451.07,0.00010958,2]
[347407151,1735770646687,-500.0,0.00010958,2]
[347407152,1735770646696,-500.0,0.00010958,2]
[347407153,1735770646705,-10464.36,0.00010958,2]
[347407154,1735770646715,-3158.71,0.00010958,2]
[347407155,1735770646724,-1206.35,0.00010958,2]
[347407156,1735770646735,-2853.39,0.00010958,2]
[347407157,1735770646746,-2244.79,0.00010958,2]
[347407158,1735770646755,-1899.58,0.00010958,2]
[347407159,1735770646765,-697.76,0.00010958,2]
[347407160,1735770646774,-1494.71,0.00010958,2]
[347407161,1735770646783,-1167.48,0.00010958,2]
[347407162,1735770646792,-7467.71,0.00010958,2]
[347407163,1735770646801,-971.58,0.00010958,2]
[347407164,1735770646811,-1945.67,0.00010958,2]
[347407165,1735770646820,-1743.24,0.00010958,2]
[347407166,1735770646830,-10996.91,0.00010958,2]
[347407167,1735770646839,-500.0,0.00010958,2]
[347407168,1735770646848,-622.19,0.00010958,2]
[347407169,1735770646857,-500.0,0.00010958,2]
[347407170,1735770646866,-857.41,0.00010958,2]
[347407171,1735770646875,-500.0,0.00010958,2]
[347407172,1735770646884,-3129.4,0.00010958,2]
[347407173,1735770646893,-1124.24,0.00010958,2]
[347407174,1735770646903,-2814.84,0.00010958,2]
[347407175,1735770646912,-1066.82,0.00010958,2]
[347407176,1735770646921,-1187.22,0.00010958,2]
[347407177,1735770646931,-672.92,0.00010958,2]
[347407178,1735770646941,-681.61,0.00010958,2]
[347407179,1735770646951,-150.0,0.00010958,2]
[347407180,1735770646960,-2498.93,0.00010958,2]
[347407181,1735770646969,-500.0,0.00010958,2]
[347407182,1735770646978,-974.61,0.00010958,2]
[347407183,1735770646988,-843.82,0.00010958,2]
[347407184,1735770646997,-1096.04,0.00010958,2]
[347407185,1735770647006,-1906.54,0.00010958,2]
[347407186,1735770647015,-500.0,0.00010958,2]
[347407187,1735770647024,-1740.09,0.00010958,2]
[347407188,1735770647033,-636.49,0.00010958,2]
[347407189,1735770647042,-2522.4,0.00010958,2]
[347407190,1735770647051,-3778.95,0.00010958,2]
[347407191,1735770647061,-1287.33,0.00010958,2]
[347407192,1735770647071,-1309.54,0.00010958,2]
[347407193,1735770647082,-1966.62,0.00010958,2]
[347407194,1735770647091,-500.0,0.00010958,2]
[347407195,1735770647102,-2182.59,0.00010958,2]
[347407196,1735770647112,-500.0,0.00010958,2]
[347407197,1735770647123,-690.92,0.00010958,2]
[347407198,1735770647132,-537.92,0.00010958,2]
[347407199,1735770647144,-1429.66,0.00010958,2]
[347407200,1735770647154,-3516.33,0.00010958,2]
[347407201,1735770647163,-500.0,0.00010958,2]
[347407202,1735770647172,-3046.97,0.00010958,2]
[347407203,1735770647182,-1976.97,0.00010958,2]
[347407204,1735770647192,-904.63,0.00010958,2]
[347407205,1735770647202,-500.0,0.00010958,2]
[347407206,1735770647211,-1455.18,0.00010958,2]
[347407207,1735770647221,-667.94,0.00010958,2]
[347407208,1735770647231,-895.45,0.00010958,2]
[347407209,1735770647246,-1513.32,0.00010958,2]
[347407210,1735770647255,-1577.37,0.00010958,2]
[347407211,1735770647264,-4592.1,0.00010958,2]
[347407212,1735770647274,-4288.67,0.00010958,2]
[347407213,1735770647284,-500.0,0.00010958,2]
[347407214,1735770647294,-1209.6,0.00010958,2]
[347407215,1735770647303,-847.83,0.00010958,2]
[347407216,1735770647316,-1079.41,0.00010958,2]
[347407217,1735770647325,-1667.62,0.00010958,2]
[347407218,1735770647335,-907.0,0.00010958,2]
[347407219,1735770647344,-551.56,0.00010958,2]
[347407220,1735770647353,-1735.56,0.00010958,2]
[347407221,1735770647362,-952.2,0.00010958,2]
[347407222,1735770647371,-500.0,0.00010958,2]
[347407223,1735770647381,-500.0,0.00010958,2]
[347407224,1735770647390,-644.96,0.00010958,2]
[347407225,1735770647400,-500.0,0.00010958,2]
[347407226,1735770647409,-2432.05,0.00010958,2]
[347407227,1735770647418,-1297.14,0.00010958,2]
[347407228,1735770647427,-4307.62,0.00010958,2]
[347407229,1735770647437,-1861.75,0.00010958,2]
[347407230,1735770647446,-719.34,0.00010958,2]
[347407231,1735770647456,-500.0,0.00010958,2]
[347407232,1735770647466,-500.0,0.00010958,2]
[347407233,1735770647476,-6774.76,0.00010958,2]
[347407234,1735770647485,-1196.99,0.00010958,2]
[347407235,1735770647494,-3923.14,0.00010958,2]
[347407236,1735770647503,-500.0,0.00010958,2]
[347407237,1735770647512,-856.93,0.00010958,2]
[347407238,1735770647521,-2056.84,0.00010958,2]
[347407239,1735770647531,-1020.48,0.00010958,2]
[347407240,1735770647540,-5451.88,0.00010958,2]
[347407241,1735770647549,-520.57,0.00010958,2]
[347407242,1735770647558,-3660.67,0.00010958,2]
[347407243,1735770647567,-881.61,0.00010958,2]
[347407244,1735770647577,-1397.0,0.00010958,2]
[347407245,1735770647586,-8507.66,0.00010958,2]
[347407246,1735770647595,-2061.18,0.00010958,2]
[347407247,1735770647604,-1215.06,0.00010958,2]
[347407248,1735770647614,-1061.69,0.00010958,2]
[347407249,1735770647623,-1350.39,0.00010958,2]
[347407250,1735770647632,-1344.45,0.00010958,2]
[347407251,1735770647642,-500.0,0.00010958,2]
[347407252,1735770647651,-500.0,0.00010958,2]
[347407253,1735770647660,-500.0,0.00010958,2]
[347407254,1735770647669,-500.0,0.00010958,2]
[347407255,1735770647678,-500.0,0.00010958,2]
[347407256,1735770647687,-500.0,0.00010958,2]
[347407257,1735770647696,-6226.44,0.00010958,2]
[347407258,1735770647705,-1044.79,0.00010958,2]
[347407259,1735770647714,-626.91,0.00010958,2]
[347407260,1735770647723,-500.0,0.00010958,2]
[347407261,1735770647732,-536.48,0.00010958,2]
[347407262,1735770647740,-500.0,0.00010958,2]
[347407263,1735770647750,-3904.69,0.00010958,2]
[347407264,1735770647759,-3962.09,0.00010958,2]
[347407265,1735770647768,-500.0,0.00010958,2]
[347407266,1735770647777,-1297.53,0.00010958,2]
[347407267,1735770647786,-500.0,0.00010958,2]
[347407268,1735770647795,-1511.05,0.00010958,2]
[347407269,1735770647804,-792.19,0.00010958,2]
[347407270,1735770647813,-1495.62,0.00010958,2]
[347407271,1735770647822,-500.0,0.00010958,2]
[347407272,1735770647832,-500.0,0.00010958,2]
[347407273,1735770647841,-500.0,0.00010958,2]
[347407274,1735770647852,-586.25,0.00010958,2]
[347407275,1735770647861,-500.0,0.00010958,2]
[347407276,1735770647870,-531.21,0.00010958,2]
[347407277,1735770647879,-1356.58,0.00010958,2]
[347407278,1735770647888,-500.0,0.00010958,2]
[347407279,1735770647897,-500.0,0.00010958,2]
[347407280,1735770647906,-500.0,0.00010958,2]
[347407281,1735770647915,-1577.72,0.00010958,2]
[347407282,1735770647924,-500.0,0.00010958,2]
[347407283,1735770647934,-629.06,0.00010958,2]
[347407284,1735770647943,-504.7,0.00010958,2]
[347407285,1735770647953,-757.83,0.00010958,2]
[347407286,1735770647962,-19894.9,0.00010958,2]
[347407287,1735770647972,-1315.61,0.00010958,2]
[347407288,1735770647981,-1380.28,0.00010958,2]
[347407289,1735770647990,-500.0,0.00010958,2]
[347407290,1735770648000,-500.0,0.00010958,2]
[347407291,1735770648009,-500.0,0.00010958,2]
[347407292,1735770648018,-1821.72,0.00010958,2]
[347407293,1735770648028,-1447.23,0.00010958,2]
[347407294,1735770648038,-2818.66,0.00010958,2]
[347407295,1735770648047,-810.08,0.00010958,2]
[347407296,1735770648056,-6053.8,0.00010958,2]
[347407297,1735770648066,-500.0,0.00010958,2]
[347407298,1735770648077,-500.0,0.00010958,2]
[347407299,1735770648086,-1619.32,0.00010958,2]
[347407300,1735770648096,-550.7,0.00010958,2]
[347407301,1735770648105,-500.0,0.00010958,2]
[347407302,1735770648115,-2007.69,0.00010958,2]
[347407303,1735770648125,-2523.6,0.00010958,2]
[347407304,1735770648134,-500.0,0.00010958,2]
[347407305,1735770648143,-1068.79,0.00010958,2]
[347407306,1735770648152,-585.91,0.00010958,2]
[347407307,1735770648162,-264.08926213,0.00010958,2]
[347407308,1735770648171,-500.0,0.00010958,2]
[347407309,1735770648180,-828.19,0.00010958,2]
[347407310,1735770648189,-500.0,0.00010958,2]
[347407311,1735770648198,-1240.83,0.00010958,2]
[347407312,1735770648207,-505.7,0.00010958,2]
[347407313,1735770648217,-494.56,0.00010958,2]
[347407314,1735770648226,-150.0,0.00010959,2]
[347407315,1735770648238,-4322.83,0.00010959,2]
[347407316,1735770648248,-500.0,0.00010973,2]
[347407317,1735770648258,-14145.4879821,0.00010983,2]
[347407318,1735770648268,-3487.880233,0.00010983,2]
[347407319,1735770648279,-11286.69973291,0.00010986,2]
[347407320,1735770648289,-150.0,0.00010986,2]
[347407321,1735770648299,-150.0,0.00010986,2]
[347407322,1735770648308,-150.0,0.00010986,2]
[347407323,1735770648317,-150.0,0.00010986,2]
[347407324,1735770648329,-261.98782876,0.00010986,2]
[347407325,1735770648339,-150.0,0.00010986,2]
[347407326,1735770648348,-400.0,0.00010986,2]
[347407327,1735770648357,-13767.17490624,0.00010986,2]
[347407328,1735770648366,-4965.84852539,0.00010987,2]
[347407329,1735770648381,-455.38002,0.00010987,2]
[347407330,1735770648404,-9580.0,0.00010987,2]
[347407331,1735770648415,-4131.69384999,0.00010987,2]
[347407332,1735770648503,-500.0,0.00010958,2]
[347407333,1735770648513,-300.0,0.00010987,2]
[347407334,1735770648563,-7853.94507219,0.00010987,2]
[347407335,1735770648582,-500.0,0.00010958,2]
[347407336,1735770648591,-346.36435001,0.00010987,2]
[347407337,1735771017181,923.21,8.219e-05,2]
[347407338,1735771041090,157.010207,0.00023,120]
[347407339,1735771043287,157.010207,0.00023,120]
[347407340,1735771043708,157.010207,0.00023,120]
[347407341,1735771044264,157.010207,0.00023,120]
[347407342,1735771044416,157.010207,0.00023,120]
[347407343,1735771044771,157.010207,0.00023,120]
[347407344,1735771045140,157.010207,0.00023,120]
[347407345,1735771045506,157.010207,0.00023,120]
[347407346,1735771046146,157.010207,0.00023,120]
[347407347,1735771046247,157.010207,0.00023,120]
[347407348,1735771046569,157.010207,0.00023,120]
[347407349,1735771046906,157.010207,0.00023,120]
[347407350,1735771047441,157.010207,0.00023,120]
[347407351,1735771047621,157.010207,0.00023,120]
[347407352,1735771047987,157.010207,0.00023,120]
[347407353,1735771048368,157.010207,0.00023,120]
[347407354,1735771048759,157.010207,0.00023,120]
[347407355,1735771049140,157.010207,0.00023,120]
[347407356,1735771049512,157.010207,0.00023,120]
[347407357,1735771049905,157.010207,0.00023,120]
[347407358,1735771050286,157.010207,0.00023,120]
[347407359,1735771050645,157.010207,0.00023,120]
[347407360,1735771051016,157.010207,0.00023,120]
[347407361,1735771051375,157.010207,0.00023,120]
[347407362,1735771051755,157.010207,0.00023,120]
[347407363,1735771052132,157.010207,0.00023,120]
[347407364,1735771052503,157.010207,0.00023,120]
[347407365,1735771053643,157.010207,0.00023,120]
[347407366,1735771053751,157.010207,0.00023,120]
[347407367,1735771053883,157.010207,0.00023,120]
[347407368,1735771053991,157.010207,0.00023,120]
[347407369,1735771054339,157.010207,0.00023,120]
[347407370,1735771054687,157.010207,0.00023,120]
[347407371,1735771055071,157.010207,0.00023,120]
[347407372,1735771055431,157.010207,0.00023,120]
[347407373,1735771055808,157.010207,0.00023,120]
[347407374,1735771056193,157.010207,0.00023,120]
[347407375,1735771056565,157.010207,0.00023,120]
[347407376,1735771056925,157.010207,0.00023,120]
[347407377,1735771057303,157.010207,0.00023,120]
[347407378,1735771057680,157.010207,0.00023,120]
[347407379,1735771058050,157.010207,0.00023,120]
[347407380,1735771058401,157.010207,0.00023,120]
[347407381,1735771058762,157.010207,0.00023,120]
[347407382,1735771059134,157.010207,0.00023,120]
[347407383,1735771059942,157.010207,0.00023,120]
[347407384,1735771060327,157.010207,0.00023,120]
[347407385,1735771060399,157.010207,0.00023,120]
[347407386,1735771060623,157.010207,0.00023,120]
[347407387,1735771061015,157.010207,0.00023,120]
[347407388,1735771061374,157.010207,0.00023,120]
[347407389,1735771061717,157.010207,0.00023,120]
[347407390,1735771062144,157.010207,0.00023,120]
[347407391,1735771062489,157.010207,0.00023,120]
[347407392,1735771062835,157.010207,0.00023,120]
[347407393,1735771063171,157.010207,0.00023,120]
[347407394,1735771064104,157.010207,0.00023,120]
[347407395,1735771064215,157.010207,0.00023,120]
[347407396,1735771064339,157.010207,0.00023,120]
[347407397,1735771064560,157.010207,0.00023,120]
[347407398,1735771064902,157.010207,0.00023,120]
[347407399,1735771065253,157.010207,0.00023,120]
[347407400,1735771065743,157.010207,0.00023,120]
[347407401,1735771065950,157.010207,0.00023,120]
[347407402,1735771066271,157.010207,0.00023,120]
[347407403,1735771066656,157.010207,0.00023,120]
[347407404,1735771067001,157.010207,0.00023,120]
[347407405,1735771067385,157.010207,0.00023,120]
[347407406,1735771067779,157.010207,0.00023,120]
[347407407,1735771068230,157.010207,0.00023,120]
[347407408,1735771068544,157.010207,0.00023,120]
[347407409,1735771068974,157.010207,0.00023,120]
[347407410,1735771069244,157.010207,0.00023,120]
[347407411,1735771069571,157.010207,0.00023,120]
[347407412,1735771069958,157.010207,0.00023,120]
[347407413,1735771070337,157.010207,0.00023,120]
[347407414,1735771070685,157.010207,0.00023,120]
[347407415,1735771071034,157.010207,0.00023,120]
[347407416,1735771071395,157.010207,0.00023,120]
[347407417,1735771071716,157.010207,0.00023,120]
[347407418,1735771072069,157.010207,0.00023,120]
[347407419,1735771072436,157.010207,0.00023,120]
[347407420,1735771072789,157.010207,0.00023,120]
[347407421,1735771073153,157.010207,0.00023,120]
[347407422,1735771073526,157.010207,0.00023,120]
[347407423,1735771073874,157.010207,0.00023,120]
[347407424,1735771074922,157.010207,0.00023,120]
[347407425,1735771075215,157.010207,0.00023,120]
[347407426,1735771086541,150.010207,0.00023,120]
[347407427,1735771209887,-158.95,9.809e-05,2]
[347407428,1735771209913,-250.0,9.878e-05,2]
[347407429,1735771239837,-250.0,9.903e-05,2]
[347407430,1735771239865,-18470.3342,9.929e-05,2]
[347407431,1735771239892,-870.7158,9.971e-05,2]
[347407432,1735771540532,60168.77832874,0.00023,120]
[347407433,1735771556130,23900.0,9.491e-05,2]
[347407434,1735771684378,170.85,9.504e-05,2]
[347407435,1735771775816,1091.79,9.5e-05,2]
[347407436,1735771781653,640.78,9.504e-05,2]
[347407437,1735771803806,1087.34,0.00024719,120]
[347407446,1735771832584,-1000.0,9.779e-05,2]
[347407447,1735771832594,-150.0,9.888e-05,2]
[347407448,1735771832603,-150.0,9.888e-05,2]
[347407449,1735771832612,-150.0,9.93e-05,2]
[347407450,1735771832622,-3017.9942,9.971e-05,2]
[347407451,1735771832632,-4675.62419632,9.971e-05,2]
[347407453,1735771832708,-2453.40557632,9.971e-05,2]
[347407456,1735771832717,-355.45230295,9.971e-05,2]
[347407457,1735771832727,-150.0,9.972e-05,2]
[347407459,1735771832737,-491.09,0.00010009,2]
[347407461,1735771832748,-150.0,0.00010014,2]
[347407463,1735771832760,-150.0,0.00010027,2]
[347407464,1735771832769,-165.58,0.00010029,2]
[347407466,1735771832779,-345.05878477,0.00010043,2]
[347407469,1735771832793,-822.08121523,0.00010043,2]
[347407470,1735771832802,-150.0,0.00010057,2]
[347407472,1735771832811,-150.0,0.00010099,2]
[347407474,1735771832821,-182.91878477,0.00010107,2]
[347407477,1735771832839,-17.08121523,0.00010107,2]
[347407479,1735771832849,-150.0,0.00010107,2]
[347407481,1735771832858,-135.96153454,0.00010137,2]
[347407483,1735771832869,-14.29846546,0.00010137,2]
[347407485,1735771832878,-150.0,0.00010141,2]
[347407487,1735771832887,-167.8,0.00010174,2]
[347407489,1735771832897,-150.0,0.00010183,2]
[347407491,1735771832906,-150.0,0.00010226,2]
[347407493,1735771832915,-162.89,0.00010242,2]